fUST/lending_fUST_20250624
["ID","MTS","AMOUNT","RATE_DAILY","PERIOD"]
[367330769,1750752667483,-1521.89,0.00020821,2]
[367330770,1750752667492,-1521.89,0.00021095,2]
[367330771,1750752667502,-1403.33,0.00021095,2]
[367330772,1750752667512,-1521.89,0.00021369,2]
[367330773,1750752667521,-1403.33,0.00021369,2]
[367330774,1750752667531,-1521.89,0.00021643,2]
[367330775,1750752667541,-1403.33,0.00021643,2]
[367330776,1750752667551,-12524.00153725,0.000218,5]
[367330777,1750752667560,-153.31,0.000218,7]
[367330778,1750752667569,-151.0,0.000218,2]
[367330779,1750752667579,-151.0,0.000218,2]
[367330780,1750752667588,-151.0,0.000218,2]
[367330781,1750752667597,-208.830051,0.000218,2]
[367330782,1750752667607,-208.830051,0.000218,2]
[367330783,1750752667616,-151.0,0.000218,2]
[367330784,1750752667626,-165.76800509,0.000218,2]
[367330785,1750752667635,-151.0,0.000218,2]
[367330786,1750752667645,-151.0,0.000218,2]
[367330787,1750752667655,-151.0,0.000218,2]
[367330788,1750752667665,-299.146207,0.000218,2]
[367330789,1750752667674,-299.146207,0.000218,2]
[367330790,1750752667683,-418.0,0.00021808,2]
[367330791,1750752667693,-223.0315306,0.00021845,2]
[367330792,1750752667702,-588.0,0.00021857,2]
[367330793,1750752667711,-206.0,0.0002186,2]
[367330794,1750752667720,-218.12,0.00021884,2]
[367330795,1750752667729,-185.24448972,0.000219,2]
[367330796,1750752667739,-3000.0,0.00021912,2]
[367330797,1750752667749,-500.0,0.00021917,2]
[367330798,1750752667758,-500.0,0.00021917,2]
[367330799,1750752667767,-500.0,0.00021917,2]
[367330800,1750752667776,-500.0,0.00021917,2]
[367330801,1750752667786,-500.0,0.00021917,2]
[367330802,1750752667795,-501.77284053,0.00021917,2]
[367330803,1750752667808,-167.874784,0.00021917,2]
[367330804,1750752667817,-167.874784,0.00021917,2]
[367330805,1750752667826,-154.043297,0.00021917,2]
[367330806,1750752667835,-757.17,0.00021917,19]
[367330807,1750752667846,-151.0,0.00021917,2]
[367330808,1750752667856,-460.0,0.00021917,2]
[367330809,1750752667865,-460.0,0.00021917,2]
[367330810,1750752667876,-673.94,0.00021917,2]
[367330811,1750752667886,-1047.12,0.00021917,2]
[367330812,1750752667895,-487.01,0.00021917,2]
[367330813,1750752667905,-460.0,0.00021917,2]
[367330814,1750752667915,-615.97,0.00021917,2]
[367330815,1750752667924,-492.32,0.00021917,2]
[367330816,1750752667933,-1917.25070573,0.00021917,2]
[367330817,1750752667943,-460.0,0.00021917,2]
[367330818,1750752667952,-460.0,0.00021917,2]
[367330819,1750752667962,-292.31740137,0.00021917,2]
[367330820,1750752667971,-714.5,0.00021917,2]
[367330821,1750752667981,-460.0,0.00021917,2]
[367330822,1750752667991,-460.0,0.00021917,2]
[367330823,1750752668001,-500.0,0.00021917,2]
[367330824,1750752668012,-500.0,0.00021917,2]
[367330825,1750752668021,-500.0,0.00021917,2]
[367330826,1750752668032,-500.0,0.00021917,2]
[367330827,1750752668043,-500.0,0.00021917,2]
[367330828,1750752668053,-500.0,0.00021917,2]
[367330829,1750752668064,-500.0,0.00021917,2]
[367330830,1750752668073,-500.0,0.00021917,2]
[367330831,1750752668083,-500.0,0.00021917,2]
[367330832,1750752668167,-508.7944113,0.00021917,2]
[367330833,1750752668177,-500.0,0.00021917,2]
[367330834,1750752668188,-523.43,0.00021917,2]
[367330835,1750752668197,-460.0,0.00021917,2]
[367330836,1750752668207,-503.09,0.00021917,2]
[367330837,1750752668216,-380.17,0.00021917,2]
[367330838,1750752668227,-460.0,0.00021917,2]
[367330839,1750752668237,-460.0,0.00021917,2]
[367330840,1750752668246,-460.0,0.00021917,2]
[367330841,1750752668255,-1026.56,0.00021917,2]
[367330842,1750752668265,-821.9,0.00021917,2]
[367330843,1750752668275,-460.0,0.00021917,2]
[367330844,1750752668284,-460.0,0.00021917,2]
[367330845,1750752668296,-896.28,0.00021917,2]
[367330846,1750752668307,-1097.0,0.00021917,2]
[367330847,1750752668318,-896.27,0.00021917,2]
[367330848,1750752668329,-3446.55,0.00021917,2]
[367330849,1750752668340,-999.41,0.00021917,2]
[367330850,1750752668350,-336.27,0.00021917,2]
[367330851,1750752668359,-460.0,0.00021917,2]
[367330852,1750752668369,-460.0,0.00021917,2]
[367330853,1750752668379,-1312.15,0.00021917,2]
[367330854,1750752668390,-2713.65,0.00021917,2]
[367330855,1750752668399,-3355.8,0.00021917,2]
[367330856,1750752668409,-3734.84,0.00021917,2]
[367330857,1750752668418,-1361.0,0.00021917,2]
[367330858,1750752668427,-1116.13,0.00021917,2]
[367330859,1750752668437,-1182.98,0.00021917,2]
[367330860,1750752668446,-460.0,0.00021917,2]
[367330861,1750752668455,-937.65,0.00021917,2]
[367330862,1750752668465,-460.0,0.00021917,2]
[367330863,1750752668474,-460.0,0.00021917,2]
[367330864,1750752668483,-547.64,0.00021917,2]
[367330865,1750752668492,-460.0,0.00021917,2]
[367330866,1750752668502,-460.0,0.00021917,2]
[367330867,1750752668512,-460.0,0.00021917,2]
[367330868,1750752668521,-1806.17,0.00021917,2]
[367330869,1750752668531,-3172.77,0.00021917,2]
[367330870,1750752668540,-460.0,0.00021917,2]
[367330871,1750752668551,-4070.75,0.00021917,2]
[367330872,1750752668560,-460.0,0.00021917,2]
[367330873,1750752668570,-1139.13,0.00021917,2]
[367330874,1750752668579,-460.0,0.00021917,2]
[367330875,1750752668590,-500.0,0.00021917,2]
[367330876,1750752668599,-500.99421502,0.00021917,2]
[367330877,1750752668608,-802.34,0.00021917,2]
[367330878,1750752668618,-2208.12,0.00021917,2]
[367330879,1750752668628,-2572.64,0.00021917,2]
[367330880,1750752668638,-513.68,0.00021917,2]
[367330881,1750752668648,-460.0,0.00021917,2]
[367330882,1750752668657,-460.0,0.00021917,2]
[367330883,1750752668667,-593.83,0.00021917,2]
[367330884,1750752668676,-584.89,0.00021917,2]
[367330885,1750752668687,-540.21,0.00021917,2]
[367330886,1750752668696,-4273.48,0.00021917,2]
[367330887,1750752668705,-946.13,0.00021917,2]
[367330888,1750752668715,-460.0,0.00021917,2]
[367330889,1750752668728,-460.0,0.00021917,2]
[367330890,1750752668746,-3042.66,0.00021917,2]
[367330891,1750752668761,-470.14,0.00021917,2]
[367330892,1750752668778,-7145.98,0.00021917,2]
[367330893,1750752668797,-460.0,0.00021917,2]
[367330894,1750752668816,-1474.54,0.00021917,2]
[367330895,1750752668831,-460.0,0.00021917,2]
[367330896,1750752668849,-460.0,0.00021917,2]
[367330897,1750752668863,-460.0,0.00021917,2]
[367330898,1750752668878,-460.0,0.00021917,2]
[367330899,1750752668896,-1898.18,0.00021917,2]
[367330900,1750752668916,-3559.0,0.00021917,2]
[367330901,1750752668932,-1037.04,0.00021917,2]
[367330902,1750752668944,-3447.67,0.00021917,2]
[367330903,1750752668963,-151.0,0.00021917,2]
[367330904,1750752668975,-853.1,0.00021917,2]
[367330905,1750752668993,-460.0,0.00021917,2]
[367330906,1750752669006,-1275.83,0.00021917,2]
[367330907,1750752669020,-157.25833172,0.00021917,2]
[367330908,1750752669034,-460.0,0.00021917,2]
[367330909,1750752669049,-1267.62,0.00021917,2]
[367330910,1750752669063,-1171.59,0.00021917,2]
[367330911,1750752669077,-823.8,0.00021917,2]
[367330912,1750752669091,-1521.89,0.00021917,2]
[367330913,1750752669104,-1403.33,0.00021917,2]
[367330914,1750752669119,-153.0,0.00021918,2]
[367330915,1750752669133,-153.0,0.00021918,2]
[367330916,1750752669147,-153.0,0.00021918,2]
[367330917,1750752669161,-153.0,0.00021918,2]
[367330918,1750752669175,-153.0,0.00021918,2]
[367330919,1750752669189,-153.0,0.00021918,2]
[367330920,1750752669203,-153.0,0.00021918,2]
[367330921,1750752669217,-153.0,0.00021918,2]
[367330922,1750752669231,-153.0,0.00021918,2]
[367330923,1750752669246,-153.0,0.00021918,2]
[367330924,1750752669262,-153.0,0.00021918,2]
[367330925,1750752669276,-153.0,0.00021918,2]
[367330926,1750752669289,-153.0,0.00021918,2]
[367330927,1750752669299,-153.0,0.00021918,2]
[367330928,1750752669308,-153.0,0.00021918,2]
[367330929,1750752669316,-153.0,0.00021918,2]
[367330930,1750752669326,-153.0,0.00021918,2]
[367330931,1750752669334,-153.0,0.00021918,2]
[367330932,1750752669343,-153.0,0.00021918,2]
[367330933,1750752669353,-153.0,0.00021918,2]
[367330934,1750752669362,-153.0,0.00021918,2]
[367330935,1750752669373,-153.0,0.00021918,2]
[367330936,1750752669382,-153.0,0.00021918,2]
[367330937,1750752669391,-153.0,0.00021918,2]
[367330938,1750752669400,-153.0,0.00021918,2]
[367330939,1750752669410,-153.0,0.00021918,2]
[367330940,1750752669419,-153.0,0.00021918,2]
[367330941,1750752669429,-153.0,0.00021918,2]
[367330942,1750752669439,-153.0,0.00021918,2]
[367330943,1750752669449,-153.0,0.00021918,2]
[367330944,1750752669459,-153.0,0.00021918,2]
[367330945,1750752669468,-153.0,0.00021918,2]
[367330946,1750752669478,-153.0,0.00021918,2]
[367330947,1750752669489,-153.0,0.00021918,2]
[367330948,1750752669498,-153.0,0.00021918,2]
[367330949,1750752669508,-153.0,0.00021918,2]
[367330950,1750752669517,-153.0,0.00021918,2]
[367330951,1750752669526,-153.0,0.00021918,2]
[367330952,1750752669752,-153.0,0.00021918,2]
[367330953,1750752669767,-153.0,0.00021918,2]
[367330954,1750752669777,-153.0,0.00021918,2]
[367330955,1750752669787,-153.0,0.00021918,2]
[367330956,1750752669802,-153.0,0.00021918,2]
[367330957,1750752669812,-153.0,0.00021918,2]
[367330958,1750752669823,-151.0,0.00021918,2]
[367330959,1750752669835,-151.0,0.00021918,2]
[367330960,1750752669845,-155.920015,0.00021918,2]
[367330961,1750752669854,-151.0,0.00021918,2]
[367330962,1750752669863,-151.0,0.00021918,2]
[367330963,1750752669874,-151.0,0.00021918,2]
[367330964,1750752669885,-151.0,0.00021918,2]
[367330965,1750752669895,-151.0,0.00021918,2]
[367330966,1750752669905,-151.0,0.00021918,2]
[367330967,1750752669915,-151.0,0.00021918,2]
[367330968,1750752669927,-151.0,0.00021918,2]
[367330969,1750752669937,-400.0,0.00021918,7]
[367330970,1750752669947,-153.21148241,0.00021918,2]
[367330971,1750752669957,-151.0,0.00021918,2]
[367330972,1750752669966,-150.14631789,0.00021918,2]
[367330973,1750752669975,-151.0,0.00021918,2]
[367330974,1750752669984,-151.0,0.00021918,2]
[367330975,1750752669993,-151.0,0.00021918,2]
[367330976,1750752670003,-151.0,0.00021918,2]
[367330977,1750752670013,-151.0,0.00021918,2]
[367330978,1750752670023,-151.0,0.00021918,2]
[367330979,1750752670032,-151.0,0.00021918,2]
[367330980,1750752670042,-151.0,0.00021918,2]
[367330981,1750752670052,-151.0,0.00021918,2]
[367330982,1750752670061,-151.0,0.00021918,2]
[367330983,1750752670070,-151.0,0.00021918,2]
[367330984,1750752670080,-151.0,0.00021918,2]
[367330985,1750752670090,-151.0,0.00021918,2]
[367330986,1750752670099,-151.0,0.00021918,7]
[367330987,1750752670108,-151.0,0.00021918,7]
[367330988,1750752670118,-151.0,0.00021918,7]
[367330989,1750752670127,-151.0,0.00021918,7]
[367330990,1750752670136,-151.0,0.00021918,7]
[367330991,1750752670146,-420.33277424,0.00021918,2]
[367330992,1750752670155,-340.49059591,0.00021931,2]
[367330993,1750752670165,-620.06771355,0.00021944,2]
[367330994,1750752670175,-2962.933333,0.0002195,3]
[367330995,1750752670184,-168.0,0.00021962,2]
[367330996,1750752670194,-2500.0,0.00021964,2]
[367330997,1750752670203,-2500.0,0.00021964,2]
[367330998,1750752670213,-2500.0,0.00021964,2]
[367330999,1750752670222,-3157.93331803,0.00021969,6]
[367331000,1750752670232,-500.0,0.00021973,2]
[367331001,1750752670241,-500.23477318,0.00021973,2]
[367331002,1750752670251,-500.0,0.00021973,2]
[367331003,1750752670259,-500.0,0.00021973,2]
[367331004,1750752670269,-500.0,0.00021973,2]
[367331005,1750752670279,-500.0,0.00021973,2]
[367331006,1750752670288,-500.0,0.00021973,2]
[367331007,1750752670298,-500.0,0.00021973,2]
[367331008,1750752670308,-500.0,0.00021973,2]
[367331009,1750752670318,-500.0,0.00021973,2]
[367331010,1750752670327,-500.0,0.00021973,2]
[367331011,1750752670336,-500.0,0.00021973,2]
[367331012,1750752670345,-500.0,0.00021973,2]
[367331013,1750752670355,-500.0,0.00021973,2]
[367331014,1750752670364,-500.0,0.00021973,2]
[367331015,1750752670373,-153.16446466,0.00021973,2]
[367331016,1750752670383,-500.0,0.00021973,2]
[367331017,1750752670391,-500.0,0.00021973,2]
[367331018,1750752670401,-500.0,0.00021973,2]
[367331019,1750752670410,-150.0,0.00021973,2]
[367331020,1750752670421,-500.0,0.00021973,2]
[367331021,1750752670430,-500.0,0.00021973,2]
[367331022,1750752670440,-500.57087183,0.00021973,2]
[367331023,1750752670449,-150.0,0.00021973,2]
[367331024,1750752670458,-500.0,0.00021973,2]
[367331025,1750752670469,-500.0,0.00021973,2]
[367331026,1750752670479,-500.26432849,0.00021973,2]
[367331027,1750752670489,-500.0,0.00021973,2]
[367331028,1750752670499,-500.0,0.00021973,2]
[367331029,1750752670508,-500.0,0.00021973,2]
[367331030,1750752670517,-500.0,0.00021973,2]
[367331031,1750752670526,-504.19277795,0.00021973,2]
[367331032,1750752670536,-500.0,0.00021973,2]
[367331033,1750752670545,-200.16032321,0.00021973,2]
[367331034,1750752670554,-151.0,0.00021973,7]
[367331035,1750752670564,-151.0,0.00021973,7]
[367331036,1750752670574,-301.50423,0.00021973,7]
[367331037,1750752670584,-301.50423,0.00021973,7]
[367331038,1750752670593,-1262.406565,0.00021973,7]
[367331039,1750752670602,-1262.406565,0.00021973,7]
[367331040,1750752670611,-151.0,0.0002199,7]
[367331041,1750752670620,-151.0,0.0002199,7]
[367331042,1750752670630,-151.0,0.0002199,7]
[367331043,1750752670639,-151.0,0.0002199,7]
[367331044,1750752670649,-10974.26182458,0.00021991,2]
[367331045,1750752670731,-500.0,0.00019115,2]
[367331046,1750752670741,-500.0,0.00019115,2]
[367331047,1750752670753,-500.0,0.00019115,2]
[367331048,1750752670762,-500.0,0.00019115,2]
[367331049,1750752670773,-500.0,0.00019115,2]
[367331050,1750752670784,-0.281,0.00019115,2]
[367331051,1750752671482,-499.719,0.00019115,2]
[367331052,1750752671491,-330.9205,0.00019115,2]
[367331053,1750752671503,-169.0795,0.00019115,2]
[367331054,1750752671513,-584.80536837,0.00019115,2]
[367331055,1750752671522,-500.0,0.00019115,2]
[367331056,1750752671531,-500.0,0.00019115,2]
[367331057,1750752671541,-500.0,0.00019115,2]
[367331058,1750752671551,-500.0,0.00019115,2]
[367331059,1750752671562,-500.0,0.00019115,2]
[367331060,1750752671572,-500.0,0.00019115,2]
[367331061,1750752671582,-500.0,0.00019115,2]
[367331062,1750752671591,-500.0,0.00019115,2]
[367331063,1750752671600,-500.0,0.00019115,2]
[367331064,1750752671610,-500.0,0.00019115,2]
[367331065,1750752671619,-500.0,0.00019115,2]
[367331066,1750752671628,-500.0,0.00019115,2]
[367331067,1750752671638,-500.0,0.00019115,2]
[367331068,1750752671648,-460.0,0.00020273,2]
[367331069,1750752671657,-460.0,0.00020547,2]
[367331070,1750752671667,-460.0,0.00020821,2]
[367331071,1750752671676,-12824.26089515,0.00021991,2]
[367331072,1750752671685,-76450.86235,0.00021991,2]
[367331073,1750752671695,-148786.67237717,0.00021992,15]
[367331075,1750752709817,-163.39,0.00019105,2]
[367331076,1750752709841,-33.74608938,0.00019105,2]
[367331077,1750752716117,-129.64391062,0.00019105,2]
[367331078,1750752716143,-170.35608938,0.00019105,2]
[367331079,1750752718747,-151.0,0.00019105,2]
[367331080,1750752720860,-22.12426309,0.00019105,2]
[367331081,1750752744067,196.0,0.00019029,2]
[367331085,1750752756519,90.18552595,0.00019078,2]
[367331086,1750752756543,191.59962596,0.00019078,2]
[367331087,1750752779942,196.0,0.00018998,2]
[367331088,1750752791308,-169.754722,0.00019113,2]
[367331089,1750752791797,533.9915163,0.00019014,2]
[367331090,1750752793492,-130.245278,0.00019113,2]
[367331092,1750752843133,218.45464195,0.00019014,2]
[367331093,1750752854658,-198.0,0.00019104,3]
[367331094,1750752856702,-192.2,0.00019104,3]
[367331095,1750752867376,308.2240976,0.000191,2]
[367331096,1750752991387,169.1261937,0.00018272,2]
[367331097,1750753019427,300.0,0.00018917,2]
[367331098,1750753020460,-154.138,0.00019104,3]
[367331099,1750753022639,-40.962,0.00019104,3]
[367331100,1750753072046,713.80445737,0.00019012,2]
[367331101,1750753133064,549.862717,0.00013699,2]
[367331102,1750753136308,-1978.47728272,0.00019111,2]
[367331103,1750753136331,-1108.52271728,0.00019111,2]
[367331105,1750753157007,3087.0,0.000191,2]
[367331106,1750753234065,-315.15532394,0.0001911,2]
[367331107,1750753240124,-172.63953114,0.0001911,2]
[367331108,1750753288314,3731.93675012,0.0001814,2]
[367331109,1750753288336,4734.23880268,0.0001814,2]
[367331111,1750753352331,676.13799904,0.0001901,2]
[367331112,1750753354098,-175.53480534,0.00019109,2]
[367331113,1750753354130,3102.56721077,0.00019078,2]
[367331114,1750753392765,568.0,0.00019,2]
[367331115,1750753407590,154.138,0.00019,2]
[367331116,1750753413480,162.423715,0.00018152,2]
[367331117,1750753450152,292.65,0.00019099,3]
[367331118,1750753460750,309.84427251,0.00019099,3]
[367331119,1750753460772,568.12572749,0.00019099,3]
[367331123,1750753563251,-151.0,0.000191,2]
[367331124,1750753563274,-53.51923186,0.00019106,2]
[367331125,1750753566545,-159.2524511,0.00019106,2]
[367331126,1750753569271,-87.22831704,0.00019106,2]
[367331127,1750753573163,2313.48757085,0.00019078,2]
[367331128,1750753596339,-288.09168296,0.00019107,2]
[367331129,1750753600362,-346.05,0.00019107,2]
[367331130,1750753657329,150.0,0.00020461,30]
[367331131,1750753657960,150.0,0.00021436,30]
[367331132,1750753658357,150.0,0.0002241,30]
[367331133,1750753659324,150.0,0.00023384,30]
[367331134,1750753687461,831.29355686,0.00019007,2]
[367331135,1750753695049,6287.0931448,0.00019078,2]
[367331136,1750753695072,463.2630656,0.00019078,2]
[367331137,1750753719378,150.999999,0.0002,120]
[367331138,1750753734906,150.0,0.00020469,30]
[367331139,1750753735433,150.0,0.00021444,30]
[367331140,1750753735877,150.0,0.00022418,30]
[367331141,1750753736877,9536.7369344,0.00018124,2]
[367331142,1750753736900,10000.0,0.00018124,2]
[367331143,1750753736922,5363.2630656,0.00018124,2]
[367331150,1750753777856,222.32,0.00019097,3]
[367331151,1750753788572,666.96,0.00019097,3]
[367331152,1750753812957,150.0,0.00020489,30]
[367331153,1750753813384,150.0,0.00021464,30]
[367331154,1750753819535,469.28,0.00019096,3]
[367331160,1750753832061,-151.0,0.000191,2]
[367331161,1750753832070,-300.0,0.00019104,2]
[367331162,1750753832079,-721.78144689,0.00019104,2]
[367331163,1750753832090,-478.21855311,0.00019104,2]
[367331164,1750753832099,-300.0,0.00019104,2]
[367331165,1750753832108,-300.0,0.00019105,2]
[367331166,1750753832116,-300.0,0.00019105,2]
[367331167,1750753832125,-17132.76554703,0.00019105,2]
[367331168,1750753832140,-12151.25046445,0.00019105,2]
[367331169,1750753832151,-20715.98398852,0.00019105,2]
[367331170,1750753832159,-500.0,0.00019105,2]
[367331171,1750753832168,-579.19222488,0.00019106,2]
[367331172,1750753832177,-500.0,0.00019106,2]
[367331173,1750753832187,-500.0,0.00019106,2]
[367331174,1750753832196,-500.0,0.00019106,2]
[367331175,1750753832206,-500.0,0.00019106,2]
[367331176,1750753832215,-500.0,0.00019106,2]
[367331177,1750753832228,-500.0,0.00019106,2]
[367331178,1750753832238,-500.0,0.00019106,2]
[367331179,1750753832247,-500.0,0.00019106,2]
[367331180,1750753832256,-500.0,0.00019106,2]
[367331181,1750753832266,-500.0,0.00019106,2]
[367331182,1750753832275,-500.0,0.00019106,2]
[367331184,1750753832284,-500.0,0.00019106,2]
[367331186,1750753832293,-500.0,0.00019106,2]
[367331187,1750753832302,-500.0,0.00019106,2]
[367331189,1750753832312,-500.0,0.00019106,2]
[367331191,1750753832321,-500.0,0.00019106,2]
[367331193,1750753832330,-500.0,0.00019106,2]
[367331195,1750753832339,-500.0,0.00019106,2]
[367331197,1750753832349,-500.0,0.00019106,2]
[367331198,1750753832358,-500.0,0.00019106,2]
[367331200,1750753832368,-500.0,0.00019106,2]
[367331202,1750753832377,-500.0,0.00019106,2]
[367331204,1750753832386,-500.0,0.00019106,2]
[367331206,1750753832395,-500.0,0.00019106,2]
[367331208,1750753832405,-500.0,0.00019106,2]
[367331210,1750753832413,-500.0,0.00019106,2]
[367331211,1750753832422,-500.0,0.00019106,2]
[367331213,1750753832432,-500.0,0.00019106,2]
[367331215,1750753832441,-500.0,0.00019106,2]
[367331217,1750753832450,-500.0,0.00019106,2]
[367331219,1750753832459,-569.85735098,0.00019106,2]
[367331221,1750753832469,-500.0,0.00019106,2]
[367331223,1750753832478,-224.89614392,0.00019106,2]
[367331225,1750753832488,-500.0,0.00019106,2]
[367331227,1750753832498,-500.0,0.00019106,2]
[367331229,1750753832507,-500.0,0.00019106,2]
[367331231,1750753832517,-500.0,0.00019106,2]
[367331233,1750753832526,-500.0,0.00019106,2]
[367331235,1750753832536,-500.0,0.00019106,2]
[367331236,1750753832545,-500.0,0.00019106,2]
[367331237,1750753832554,-500.0,0.00019106,2]
[367331239,1750753832564,-500.0,0.00019106,2]
[367331241,1750753832573,-500.0,0.00019106,2]
[367331243,1750753832582,-500.0,0.00019106,2]
[367331245,1750753832592,-500.0,0.00019106,2]
[367331246,1750753832601,-500.0,0.00019106,2]
[367331248,1750753832611,-500.0,0.00019106,2]
[367331250,1750753832620,-500.0,0.00019106,2]
[367331252,1750753832630,-500.0,0.00019106,2]
[367331254,1750753832640,-500.0,0.00019106,2]
[367331256,1750753832649,-500.0,0.00019106,2]
[367331258,1750753832658,-500.0,0.00019106,2]
[367331260,1750753832667,-500.0,0.00019106,2]
[367331262,1750753832677,-500.0,0.00019106,2]
[367331264,1750753832686,-500.0,0.00019106,2]
[367331266,1750753832695,-500.0,0.00019106,2]
[367331268,1750753832704,-500.0,0.00019106,2]
[367331270,1750753832713,-500.0,0.00019106,2]
[367331272,1750753832723,-500.0,0.00019106,2]
[367331274,1750753832732,-500.0,0.00019106,2]
[367331276,1750753832742,-500.0,0.00019106,2]
[367331278,1750753832751,-500.0,0.00019106,2]
[367331280,1750753832760,-458.48053684,0.00019106,2]
[367331282,1750753832769,-500.0,0.00019106,2]
[367331284,1750753832779,-155.95160573,0.00019106,2]
[367331286,1750753832788,-500.0,0.00019106,2]
[367331288,1750753832797,-500.0,0.00019106,2]
[367331290,1750753832806,-500.0,0.00019106,2]
[367331292,1750753832815,-551.43992082,0.00019106,2]
[367331294,1750753832824,-500.0,0.00019106,2]
[367331296,1750753832833,-500.0,0.00019106,2]
[367331298,1750753832842,-500.0,0.00019106,2]
[367331300,1750753832851,-500.0,0.00019106,2]
[367331302,1750753832860,-500.0,0.00019106,2]
[367331304,1750753832869,-500.0,0.00019106,2]
[367331306,1750753832877,-500.0,0.00019106,2]
[367331308,1750753832886,-500.0,0.00019106,2]
[367331310,1750753832897,-500.0,0.00019106,2]
[367331312,1750753832906,-500.0,0.00019106,2]
[367331314,1750753832915,-500.0,0.00019106,2]
[367331316,1750753832923,-138.42679118,0.00019106,2]
[367331385,1750753837980,-361.57320882,0.00019106,2]
[367331386,1750753837990,-500.0,0.00019106,2]
[367331387,1750753837999,-500.0,0.00019106,2]
[367331388,1750753838009,-500.0,0.00019106,2]
[367331389,1750753838018,-18.0165628,0.00019106,2]
[367331390,1750753838030,-481.9834372,0.00019106,2]
[367331391,1750753838039,-500.0,0.00019106,2]
[367331392,1750753838048,-500.0,0.00019106,2]
[367331393,1750753838058,-309.77197486,0.00019106,2]
[367331394,1750753838067,-500.0,0.00019106,2]
[367331395,1750753838076,-500.0,0.00019106,2]
[367331396,1750753838085,-500.0,0.00019106,2]
[367331397,1750753838094,-500.0,0.00019106,2]
[367331398,1750753838103,-500.0,0.00019106,2]
[367331399,1750753838113,-500.0,0.00019106,2]
[367331400,1750753838122,-500.0,0.00019106,2]
[367331401,1750753838131,-500.0,0.00019106,2]
[367331402,1750753838141,-500.0,0.00019106,2]
[367331403,1750753838152,-500.0,0.00019106,2]
[367331404,1750753838162,-500.0,0.00019106,2]
[367331405,1750753838172,-500.0,0.00019106,2]
[367331406,1750753838182,-500.0,0.00019106,2]
[367331407,1750753838191,-500.0,0.00019106,2]
[367331408,1750753838201,-500.0,0.00019106,2]
[367331409,1750753838210,-500.0,0.00019106,2]
[367331410,1750753838219,-500.0,0.00019106,2]
[367331411,1750753838229,-500.0,0.00019106,2]
[367331412,1750753838242,-500.0,0.00019106,2]
[367331413,1750753838251,-500.0,0.00019106,2]
[367331414,1750753838260,-500.0,0.00019106,2]
[367331415,1750753838269,-500.0,0.00019106,2]
[367331416,1750753838279,-500.0,0.00019106,2]
[367331417,1750753838287,-500.0,0.00019106,2]
[367331418,1750753838296,-500.0,0.00019106,2]
[367331419,1750753838305,-500.0,0.00019106,2]
[367331420,1750753838315,-500.0,0.00019106,2]
[367331421,1750753838326,-500.0,0.00019106,2]